[Event "British Rapidplay Championship 2023"]
[Site "Mercure Bradford, Bankfield Hotel"]
[Date "2023.04.16"]
[Round "8.16"]
[White "Hutchinson, Paul A"]
[Black "Bramson, Mike"]
[Result "0-1"]
[TimeControl "15 minutes plus 10 seconds per move"]
[WhiteElo "2184"]
[BlackElo "1864"]

1. d4 {[%clk 00:00:00]} {[%emt 00:35:30]} Nf6 {[%clk 00:00:00]} {[%emt
00:00:02]} 2. Bf4 {[%clk 00:00:00]} c6 {[%clk 00:00:00]} {[%emt 00:00:11]} 3.
e3 {[%clk 00:00:00]} {[%emt 00:00:03]} Qb6 {[%clk 00:00:00]} {[%emt 00:00:03]}
4. b3 {[%clk 00:00:00]} {[%emt 00:00:24]} d6 {[%clk 00:00:00]} {[%emt
00:00:05]} 5. Bd3 {[%clk 00:00:00]} {[%emt 00:00:31]} Nbd7 {[%clk 00:13:42]}
{[%emt 00:02:26]} 6. Nf3 {[%clk 00:15:18]} {[%emt 00:00:02]} Nh5 {[%clk
00:13:37]} {[%emt 00:00:16]} 7. Bg3 {[%clk 00:15:17]} {[%emt 00:00:10]} Nxg3
{[%clk 00:13:44]} {[%emt 00:00:03]} 8. hxg3 {[%clk 00:15:26]} {[%emt 00:00:01]}
g6 {[%clk 00:13:51]} {[%emt 00:00:03]} 9. Nbd2 {[%clk 00:15:14]} {[%emt
00:00:21]} Bg7 {[%clk 00:13:59]} {[%emt 00:00:03]} 10. Rc1 {[%emt 00:00:14]}
O-O {[%clk 00:13:57]} {[%emt 00:00:01]} 11. c4 {[%clk 00:15:24]} {[%emt
00:00:07]} c5 {[%clk 00:13:39]} {[%emt 00:00:28]} 12. d5 {[%clk 00:15:14]}
{[%emt 00:00:21]} Nf6 {[%clk 00:12:51]} {[%emt 00:00:57]} 13. Bb1 {[%clk
00:14:39]} {[%emt 00:00:46]} Bg4 {[%clk 00:12:48]} {[%emt 00:00:12]} 14. Qc2
{[%clk 00:13:57]} {[%emt 00:00:52]} Qd8 {[%clk 00:11:26]} {[%emt 00:01:32]} 15.
Ng5 {[%clk 00:12:10]} {[%emt 00:01:57]} b5 {[%clk 00:10:17]} {[%emt 00:01:20]}
16. f3 {[%clk 00:12:14]} {[%emt 00:00:06]} Bd7 {[%clk 00:10:19]} {[%emt
00:00:07]} 17. Nde4 {[%clk 00:12:11]} {[%emt 00:00:13]} Bf5 {[%clk 00:10:24]}
{[%emt 00:00:05]} 18. g4 {[%clk 00:11:57]} {[%emt 00:00:24]} Bxe4 {[%clk
00:10:27]} {[%emt 00:00:07]} 19. Nxe4 {[%clk 00:11:40]} {[%emt 00:00:27]} bxc4
{[%clk 00:10:10]} {[%emt 00:00:27]} 20. Qxc4 {[%clk 00:11:40]} {[%emt
00:00:10]} Rb8 {[%clk 00:09:51]} {[%emt 00:00:29]} 21. Ng3 {[%clk 00:11:16]}
{[%emt 00:00:34]} Qa5+ {[%clk 00:09:35]} {[%emt 00:00:27]} 22. Ke2 {[%clk
00:11:04]} {[%emt 00:00:21]} Rb4 {[%clk 00:09:27]} {[%emt 00:00:19]} 23. Qd3
{[%clk 00:11:08]} {[%emt 00:00:06]} Qb6 {[%clk 00:08:34]} {[%emt 00:01:03]} 24.
g5 {[%clk 00:11:14]} {[%emt 00:00:03]} Nd7 {[%clk 00:08:38]} {[%emt 00:00:07]}
25. f4 {[%clk 00:11:21]} {[%emt 00:00:01]} Rb8 {[%clk 00:07:30]} {[%emt
00:01:19]} 26. Kf2 {[%clk 00:11:13]} {[%emt 00:00:18]} Rxf4+ {[%clk 00:07:13]}
{[%emt 00:00:27]} 27. Ke2 {[%clk 00:09:49]} {[%emt 00:01:35]} Rb4 {[%clk
00:07:06]} {[%emt 00:00:16]} 28. Nf5 {[%clk 00:09:42]} {[%emt 00:00:17]} Re8
{[%clk 00:04:27]} {[%emt 00:02:49]} 29. Nxg7 {[%clk 00:09:04]} {[%emt
00:00:49]} Kxg7 {[%clk 00:04:35]} {[%emt 00:00:02]} 30. e4 {[%clk 00:08:19]}
{[%emt 00:00:54]} Qb5 {[%clk 00:04:36]} {[%emt 00:00:09]} 31. Qxb5 {[%clk
00:08:17]} {[%emt 00:00:12]} Rxb5 {[%clk 00:04:45]} {[%emt 00:00:01]} 32. Bd3
{[%clk 00:08:26]} {[%emt 00:00:01]} Rbb8 {[%clk 00:04:49]} {[%emt 00:00:06]} 33.
Rh3 {[%clk 00:08:08]} {[%emt 00:00:28]} Nf8 {[%clk 00:04:36]} {[%emt 00:00:23]}
34. Rf1 {[%clk 00:08:10]} {[%emt 00:00:08]} e6 {[%clk 00:04:39]} {[%emt
00:00:07]} 35. Bc4 {[%clk 00:08:16]} {[%emt 00:00:04]} exd5 {[%clk 00:04:23]}
{[%emt 00:00:26]} 36. Bxd5 {[%clk 00:08:24]} {[%emt 00:00:02]} Ne6 {[%clk
00:04:32]} {[%emt 00:00:01]} 37. Rg3 {[%clk 00:07:25]} {[%emt 00:01:09]} Re7
{[%clk 00:04:24]} {[%emt 00:00:19]} 38. Kd3 {[%clk 00:06:56]} {[%emt 00:00:39]}
a5 {[%clk 00:03:57]} {[%emt 00:00:37]} 39. a4 {[%clk 00:06:49]} {[%emt
00:00:17]} Nd4 {[%clk 00:03:29]} {[%emt 00:00:38]} 40. Kd2 {[%clk 00:06:10]}
{[%emt 00:00:48]} Rb6 {[%clk 00:03:23]} {[%emt 00:00:17]} 41. Re3 {[%clk
00:05:14]} {[%emt 00:01:06]} Ne6 {[%clk 00:03:17]} {[%emt 00:00:16]} 42. Rg3
{[%clk 00:05:22]} {[%emt 00:00:02]} Rb8 {[%clk 00:02:59]} {[%emt 00:00:28]} 43.
Rh1 {[%clk 00:05:28]} {[%emt 00:00:03]} Nc7 {[%clk 00:02:53]} {[%emt 00:00:17]}
44. Bc6 {[%clk 00:04:36]} {[%emt 00:01:03]} Rd8 {[%clk 00:02:43]} {[%emt
00:00:20]} 45. Rgh3 {[%clk 00:04:42]} {[%emt 00:00:04]} Rh8 {[%emt 00:00:13]}
46. Rf1 {[%clk 00:04:49]} Ne6 {[%clk 00:02:30]} {[%emt 00:00:21]} 47. Rg3
{[%clk 00:04:55]} {[%emt 00:00:04]} Rb8 {[%clk 00:02:18]} {[%emt 00:00:22]} 48.
Bd5 {[%clk 00:05:03]} {[%emt 00:00:02]} Nc7 {[%clk 00:01:59]} {[%emt 00:00:30]}
49. Bc6 {[%clk 00:05:09]} {[%emt 00:00:03]} Rb6 {[%clk 00:02:00]} {[%emt
00:00:09]} 50. Bd5 {[%clk 00:04:28]} {[%emt 00:00:51]} Nxd5 {[%clk 00:02:09]}
{[%emt 00:00:02]} 51. exd5 {[%clk 00:04:37]} {[%emt 00:00:01]} Re5 {[%clk
00:02:09]} {[%emt 00:00:09]} 52. Rh1 {[%clk 00:04:45]} {[%emt 00:00:01]} Rxd5+
{[%clk 00:02:06]} {[%emt 00:00:14]} 53. Kc2 {[%clk 00:04:55]} {[%emt 00:00:01]}
Re5 {[%clk 00:02:03]} {[%emt 00:00:13]} 54. Rgh3 {[%clk 00:05:01]} {[%emt
00:00:03]} Rxg5 {[%clk 00:02:11]} {[%emt 00:00:03]} 55. Rxh7+ {[%clk 00:05:09]}
{[%emt 00:00:01]} Kf6 {[%clk 00:02:19]} {[%emt 00:00:02]} 56. g4 {[%clk
00:05:06]} {[%emt 00:00:13]} Rb4 {[%clk 00:02:15]} {[%emt 00:00:14]} 57. Rf1+
{[%clk 00:05:14]} {[%emt 00:00:03]} Ke6 {[%clk 00:02:21]} {[%emt 00:00:04]} 58.
Rfxf7 {[%clk 00:05:06]} {[%emt 00:00:16]} c4 {[%clk 00:02:11]} {[%emt
00:00:21]} 59. bxc4 {[%clk 00:04:40]} {[%emt 00:00:36]} Rxc4+ {[%clk 00:02:19]}
{[%emt 00:00:03]} 60. Kb3 {[%clk 00:04:48]} {[%emt 00:00:01]} Rgxg4 {[%clk
00:02:14]} {[%emt 00:00:15]} 61. Re7+ {[%clk 00:04:56]} {[%emt 00:00:03]} Kd5
{[%clk 00:02:21]} {[%emt 00:00:02]} 62. Rh3 {[%clk 00:05:05]} {[%emt 00:00:01]}
Rb4+ {[%clk 00:02:26]} {[%emt 00:00:06]} 63. Kc3 {[%clk 00:04:40]} {[%emt
00:00:34]} Rxa4 {[%clk 00:02:31]} {[%emt 00:00:06]} 64. Rd3+ {[%clk 00:04:41]}
{[%emt 00:00:08]} Kc6 {[%clk 00:02:32]} {[%emt 00:00:09]} 65. Ree3 {[%clk
00:03:57]} {[%emt 00:00:55]} Ra3+ {[%clk 00:02:36]} {[%emt 00:00:06]} 66. Kb2
{[%clk 00:04:04]} {[%emt 00:00:02]} Rxd3 {[%clk 00:02:43]} {[%emt 00:00:03]} 67.
Rxd3 {[%clk 00:04:13]} {[%emt 00:00:01]} d5 {[%clk 00:02:49]} {[%emt 00:00:05]}
68. Ra3 {[%clk 00:04:15]} {[%emt 00:00:07]} a4 {[%clk 00:02:55]} {[%emt
00:00:04]} 69. Rf3 {[%clk 00:04:20]} {[%emt 00:00:05]} Kc5 {[%clk 00:03:01]}
{[%emt 00:00:05]} 70. Ka3 {[%clk 00:04:21]} {[%emt 00:00:09]} Kd6 {[%clk
00:02:59]} {[%emt 00:00:12]} 71. Rf8 {[%clk 00:04:29]} {[%emt 00:00:01]} Ke5
{[%clk 00:03:03]} {[%emt 00:00:06]} 72. Re8+ {[%clk 00:04:37]} {[%emt
00:00:03]} Kf5 {[%clk 00:03:06]} {[%emt 00:00:07]} 73. Rd8 {[%clk 00:04:42]}
{[%emt 00:00:05]} Rd4 {[%clk 00:03:08]} {[%emt 00:00:08]} 74. Kb2 {[%clk
00:04:36]} {[%emt 00:00:16]} g5 {[%clk 00:03:15]} {[%emt 00:00:03]} 75. Kc3
{[%clk 00:04:45]} {[%emt 00:00:01]} Rc4+ {[%clk 00:02:52]} {[%emt 00:00:33]} 76.
Kd3 {[%clk 00:04:53]} {[%emt 00:00:01]} Rc5 {[%clk 00:03:01]} {[%emt 00:00:01]}
77. Kd4 {[%clk 00:04:47]} {[%emt 00:00:17]} Ra5 {[%clk 00:03:09]} {[%emt
00:00:01]} 78. Rf8+ {[%clk 00:04:55]} {[%emt 00:00:02]} Kg4 {[%clk 00:03:16]}
{[%emt 00:00:04]} 79. Rf1 {[%clk 00:04:48]} {[%emt 00:00:16]} a3 {[%clk
00:03:24]} {[%emt 00:00:02]} 80. Rg1 {[%clk 00:04:56]} {[%emt 00:00:03]} Kf5
{[%clk 00:03:32]} {[%emt 00:00:01]} 81. Rf1+ {[%clk 00:04:54]} {[%emt
00:00:11]} Kg6 {[%clk 00:03:41]} {[%emt 00:00:02]} 82. Ra1 {[%clk 00:04:55]}
{[%emt 00:00:10]} a2 {[%clk 00:03:49]} {[%emt 00:00:01]} 83. Ke5 {[%clk
00:05:04]} {[%emt 00:00:01]} Kh5 {[%clk 00:03:50]} {[%emt 00:00:10]} 84. Kf5
{[%clk 00:05:11]} {[%emt 00:00:02]} d4+ {[%clk 00:03:55]} {[%emt 00:00:04]} 85.
Ke4 {[%clk 00:05:20]} {[%emt 00:00:02]} Kg4 {[%clk 00:04:03]} {[%emt 00:00:02]}
86. Kxd4 {[%clk 00:05:27]} {[%emt 00:00:03]} Kf3 {[%clk 00:04:11]} {[%emt
00:00:02]} 87. Kd3 {[%clk 00:05:23]} {[%emt 00:00:14]} g4 {[%clk 00:04:19]}
{[%emt 00:00:02]} 88. Rf1 {[%clk 00:05:29]} {[%emt 00:00:04]} Kg2 {[%clk
00:04:27]} {[%emt 00:00:02]} 89. Ra1 {[%clk 00:05:38]} {[%emt 00:00:02]} Kf2
{[%clk 00:04:34]} {[%emt 00:00:03]} 90. Kc2 {[%clk 00:05:25]} {[%emt 00:00:23]}
g3 {[%clk 00:04:42]} {[%emt 00:00:01]} 91. Kb2 {[%clk 00:05:28]} {[%emt
00:00:07]} g2 {[%clk 00:04:47]} {[%emt 00:00:05]} 92. Rc1 {[%clk 00:05:28]}
{[%emt 00:00:10]} a1=Q+ {[%clk 00:04:41]} {[%emt 00:00:16]} 0-1

[Event "British Rapidplay Championship 2023"]
[Site "Mercure Bradford, Bankfield Hotel"]
[Date "2023.04.16"]
[Round "8.17"]
[White "Mata, Andrew B"]
[Black "Ackley, Peter JE"]
[Result "1/2-1/2"]
[TimeControl "15 minutes plus 10 seconds per move"]
[WhiteElo "1659"]
[BlackElo "2151"]

1. d4 {[%clk 00:15:17]} {[%emt 00:00:03]} d6 {[%clk 00:15:19]} {[%emt
00:00:02]} 2. Nf3 {[%clk 00:15:14]} {[%emt 00:00:13]} g6 {[%clk 00:15:27]}
{[%emt 00:00:02]} 3. c4 {[%clk 00:15:20]} {[%emt 00:00:04]} Bg7 {[%clk
00:15:35]} {[%emt 00:00:02]} 4. g3 {[%clk 00:15:28]} {[%emt 00:00:03]} Nd7
{[%clk 00:15:42]} {[%emt 00:00:02]} 5. Bg2 {[%clk 00:15:36]} {[%emt 00:00:02]}
e5 {[%clk 00:15:50]} {[%emt 00:00:02]} 6. Nc3 {[%clk 00:15:12]} {[%emt
00:00:34]} Ne7 {[%clk 00:15:58]} {[%emt 00:00:02]} 7. O-O {[%clk 00:15:11]}
{[%emt 00:00:10]} O-O {[%clk 00:16:05]} {[%emt 00:00:03]} 8. e4 {[%clk
00:15:19]} {[%emt 00:00:02]} exd4 {[%clk 00:16:13]} {[%emt 00:00:02]} 9. Nxd4
{[%clk 00:15:27]} {[%emt 00:00:02]} Nc6 {[%clk 00:16:21]} {[%emt 00:00:02]} 10.
Nxc6 {[%clk 00:14:04]} {[%emt 00:01:33]} bxc6 {[%clk 00:16:30]} {[%emt
00:00:02]} 11. Qc2 {[%clk 00:14:12]} {[%emt 00:00:02]} Ne5 {[%clk 00:16:29]}
{[%emt 00:00:11]} 12. b3 {[%clk 00:14:20]} {[%emt 00:00:02]} Nf3+ {[%clk
00:16:31]} {[%emt 00:00:07]} 13. Bxf3 {[%clk 00:12:30]} {[%emt 00:02:00]} Qf6
{[%clk 00:16:40]} {[%emt 00:00:01]} 14. Bg2 {[%clk 00:12:39]} {[%emt 00:00:01]}
Qxc3 {[%clk 00:16:48]} {[%emt 00:00:02]} 15. Qxc3 {[%clk 00:12:47]} {[%emt
00:00:02]} Bxc3 {[%clk 00:16:56]} {[%emt 00:00:02]} 16. Rb1 {[%clk 00:12:56]}
{[%emt 00:00:01]} Rb8 {[%clk 00:14:10]} {[%emt 00:02:55]} 17. Be3 {[%clk
00:11:48]} {[%emt 00:01:18]} c5 {[%clk 00:14:02]} {[%emt 00:00:18]} 18. Rbc1
{[%clk 00:11:20]} {[%emt 00:00:38]} Bg7 {[%clk 00:13:51]} {[%emt 00:00:21]} 19.
Bd2 {[%clk 00:11:01]} {[%emt 00:00:29]} Re8 {[%clk 00:13:43]} {[%emt 00:00:17]}
20. Rfd1 {[%clk 00:10:19]} {[%emt 00:00:52]} Bb7 {[%clk 00:13:28]} {[%emt
00:00:26]} 21. f3 {[%clk 00:10:05]} {[%emt 00:00:24]} Bd4+ {[%clk 00:13:33]}
{[%emt 00:00:05]} 22. Kf1 {[%clk 00:10:14]} {[%emt 00:00:01]} Kg7 {[%clk
00:12:56]} {[%emt 00:00:47]} 23. Bc3 {[%clk 00:09:55]} {[%emt 00:00:28]} Bxc3
{[%clk 00:13:04]} {[%emt 00:00:03]} 24. Rxc3 {[%clk 00:10:04]} {[%emt
00:00:02]} Bc6 {[%clk 00:13:02]} {[%emt 00:00:11]} 25. Kf2 {[%clk 00:09:12]}
{[%emt 00:01:02]} a5 {[%clk 00:12:54]} {[%emt 00:00:19]} 26. Re3 {[%clk
00:09:14]} {[%emt 00:00:07]} a4 {[%clk 00:12:25]} {[%emt 00:00:39]} 27. f4
{[%clk 00:07:42]} {[%emt 00:01:42]} axb3 {[%clk 00:11:56]} {[%emt 00:00:39]} 28.
axb3 {[%clk 00:07:50]} {[%emt 00:00:02]} Ra8 {[%clk 00:11:23]} {[%emt
00:00:43]} 29. Rd2 {[%clk 00:07:48]} {[%emt 00:00:12]} Ra3 {[%clk 00:11:09]}
{[%emt 00:00:23]} 30. e5 {[%clk 00:07:25]} {[%emt 00:00:34]} Bxg2 {[%clk
00:11:13]} {[%emt 00:00:06]} 31. Kxg2 {[%clk 00:07:33]} {[%emt 00:00:01]} Re6
{[%clk 00:07:43]} {[%emt 00:03:41]} 32. Kf3 {[%clk 00:07:31]} {[%emt 00:00:12]}
Ra6 {[%clk 00:07:21]} {[%emt 00:00:31]} 33. h3 {[%clk 00:06:53]} {[%emt
00:00:47]} h5 {[%clk 00:07:25]} {[%emt 00:00:07]} 34. Rd5 {[%clk 00:06:21]}
{[%emt 00:00:42]} Rb6 {[%clk 00:06:49]} {[%emt 00:00:46]} 35. Red3 {[%clk
00:06:11]} {[%emt 00:00:20]} f5 {[%clk 00:05:51]} {[%emt 00:01:08]} 36. h4
{[%clk 00:04:14]} {[%emt 00:02:07]} Kf7 {[%clk 00:05:49]} {[%emt 00:00:12]} 37.
Ke4 {[%emt 00:00:29]} Ke8+ {[%emt 00:00:03]} 1/2-1/2

[Event "British Rapidplay Championship 2023"]
[Site "Mercure Bradford, Bankfield Hotel"]
[Date "2023.04.16"]
[Round "8.18"]
[White "Watson, Phil R"]
[Black "Cuaresma, Gerald"]
[Result "1-0"]
[TimeControl "15 minutes plus 10 seconds per move"]
[WhiteElo "2144"]
[BlackElo "1741"]

1. d4 {[%clk 00:15:17]} {[%emt 00:00:02]} Nf6 {[%clk 00:15:18]} {[%emt
00:00:02]} 2. c4 {[%clk 00:15:25]} {[%emt 00:00:02]} c5 {[%clk 00:15:26]}
{[%emt 00:00:02]} 3. d5 {[%clk 00:15:34]} {[%emt 00:00:02]} e5 {[%clk
00:15:35]} {[%emt 00:00:01]} 4. Nc3 {[%clk 00:15:39]} {[%emt 00:00:05]} d6
{[%clk 00:15:43]} {[%emt 00:00:01]} 5. e4 {[%clk 00:15:47]} {[%emt 00:00:02]}
Be7 {[%clk 00:15:51]} {[%emt 00:00:01]} 6. Nf3 {[%clk 00:15:53]} {[%emt
00:00:05]} Nbd7 {[%clk 00:16:00]} {[%emt 00:00:01]} 7. Bd3 {[%clk 00:15:07]}
{[%emt 00:00:56]} O-O {[%clk 00:16:02]} {[%emt 00:00:08]} 8. O-O {[%clk
00:15:12]} {[%emt 00:00:06]} Ne8 {[%clk 00:15:59]} {[%emt 00:00:12]} 9. a4
{[%clk 00:14:30]} {[%emt 00:00:52]} Kh8 {[%clk 00:16:00]} {[%emt 00:00:09]} 10.
Rb1 {[%clk 00:14:01]} {[%emt 00:00:39]} g6 {[%clk 00:16:06]} {[%emt 00:00:03]}
11. Bh6 {[%clk 00:11:06]} {[%emt 00:03:06]} Ng7 {[%clk 00:16:15]} {[%emt
00:00:01]} 12. Qd2 {[%clk 00:10:59]} {[%emt 00:00:17]} Nf6 {[%clk 00:16:15]}
{[%emt 00:00:09]} 13. h3 {[%clk 00:10:14]} {[%emt 00:00:55]} Ng8 {[%clk
00:16:23]} {[%emt 00:00:02]} 14. b4 {[%clk 00:08:55]} {[%emt 00:01:30]} cxb4
{[%clk 00:15:00]} {[%emt 00:01:33]} 15. Rxb4 {[%clk 00:09:01]} {[%emt
00:00:04]} Nxh6 {[%clk 00:15:08]} {[%emt 00:00:02]} 16. Qxh6 {[%clk 00:09:09]}
{[%emt 00:00:02]} f5 {[%clk 00:14:39]} {[%emt 00:00:38]} 17. h4 {[%clk
00:07:14]} {[%emt 00:02:05]} f4 {[%clk 00:11:29]} {[%emt 00:03:20]} 18. Rfb1
{[%clk 00:05:23]} {[%emt 00:02:01]} Rb8 {[%clk 00:10:10]} {[%emt 00:01:29]} 19.
Nb5 {[%clk 00:02:55]} {[%emt 00:02:38]} a5 {[%clk 00:09:57]} {[%emt 00:00:23]}
20. R4b3 {[%clk 00:02:45]} {[%emt 00:00:20]} Ra8 {[%clk 00:09:39]} {[%emt
00:00:29]} 21. Nxd6 {[%clk 00:02:18]} {[%emt 00:00:37]} Qxd6 {[%clk 00:08:42]}
{[%emt 00:01:07]} 22. Rxb7 {[%clk 00:02:27]} {[%emt 00:00:02]} Bxb7 {[%clk
00:08:50]} {[%emt 00:00:02]} 23. Rxb7 {[%clk 00:02:35]} {[%emt 00:00:01]} Nh5
{[%clk 00:08:28]} {[%emt 00:00:31]} 24. Ng5 {[%clk 00:02:27]} {[%emt 00:00:19]}
Nf6 {[%clk 00:08:30]} {[%emt 00:00:08]} 25. Ne6 {[%clk 00:02:20]} {[%emt
00:00:16]} Rf7 {[%clk 00:08:35]} {[%emt 00:00:04]} 26. c5 {[%clk 00:02:26]}
{[%emt 00:00:06]} Qb8 {[%clk 00:05:09]} {[%emt 00:03:36]} 27. Rxb8+ {[%clk
00:02:10]} {[%emt 00:00:26]} Rxb8 {[%clk 00:05:18]} {[%emt 00:00:01]} 28. Ng5
{[%clk 00:02:18]} {[%emt 00:00:01]} Ng4 {[%clk 00:04:06]} {[%emt 00:01:22]} 29.
Nxf7+ {[%clk 00:02:19]} {[%emt 00:00:09]} Kg8 {[%clk 00:04:15]} 30. d6 {[%clk
00:02:14]} {[%emt 00:00:16]} Nxh6 {[%clk 00:04:01]} {[%emt 00:00:24]} 31. Nxh6+
{[%clk 00:02:22]} {[%emt 00:00:03]} Kg7 {[%clk 00:04:10]} 32. dxe7 {[%clk
00:02:25]} {[%emt 00:00:08]} Re8 {[%clk 00:03:07]} {[%emt 00:01:13]} 33. Ng4
{[%clk 00:02:20]} {[%emt 00:00:15]} Rxe7 {[%clk 00:03:16]} {[%emt 00:00:01]} 34.
c6 {[%clk 00:02:14]} {[%emt 00:00:16]} h5 {[%clk 00:02:43]} {[%emt 00:00:42]}
35. Nh2 {[%clk 00:02:19]} {[%emt 00:00:05]} Kf6 {[%clk 00:02:00]} {[%emt
00:00:52]} 36. Nf3 {[%clk 00:02:19]} {[%emt 00:00:10]} Rc7 {[%clk 00:01:56]}
{[%emt 00:00:14]} 37. Bb5 {[%clk 00:02:27]} {[%emt 00:00:03]} Ke6 {[%clk
00:02:01]} {[%emt 00:00:04]} 38. Kf1 {[%clk 00:02:33]} {[%emt 00:00:04]} Kd6
{[%clk 00:02:03]} {[%emt 00:00:08]} 39. Ke2 {[%clk 00:02:42]} {[%emt 00:00:02]}
Re7 {[%clk 00:02:05]} {[%emt 00:00:08]} 40. Kd3 {[%clk 00:02:43]} {[%emt
00:00:09]} Kc5 {[%clk 00:01:40]} {[%emt 00:00:34]} 41. Kc3 {[%clk 00:02:39]}
{[%emt 00:00:15]} 1-0